bitfinex/quotes_SOLUSD_20241202
["timestamp","ask_amount","ask_price","bid_price","bid_amount"]
[1733159111497,12.8372085,226.7,226.64,6.5305]
[1733159112001,12.8372085,226.66,226.6,15.3227]
[1733159112287,12.8372085,226.65,226.59,6.6337]
[1733159112589,12.8372085,226.66,226.59,19.4709085]
[1733159112792,0.38548579,226.7,226.59,6.6337]
[1733159112793,12.8372085,226.65,226.59,6.6337]
[1733159114036,12.8372085,226.64,226.59,6.6337]
[1733159114057,0.38548579,226.7,226.59,6.6337]
[1733159114058,12.8372085,226.65,226.59,6.6337]
[1733159114179,12.8372085,226.66,226.59,19.4709085]
[1733159116192,12.8372085,226.69,226.62,12.8372085]
[1733159116198,12.8372085,226.72,226.64,12.8372085]
[1733159116204,13.22269429,226.72,226.64,12.8372085]
[1733159116210,12.8372085,226.71,226.64,12.8372085]
[1733159116214,12.8372085,226.75,226.68,12.8372085]
[1733159116221,0.38548579,226.74,226.68,12.8372085]
[1733159116479,0.38548579,226.74,226.69,4.403]
[1733159116793,12.8372085,226.73,226.68,4.403]
[1733159117398,5.0,226.81,226.65,15.3568]
[1733159117399,12.8372085,226.71,226.69,4.403]
[1733159117597,0.38548579,226.72,226.69,4.403]
[1733159117598,12.8372085,226.72,226.69,4.403]
[1733159117896,12.8372085,226.73,226.69,4.403]
[1733159118128,12.8372085,226.71,226.69,4.403]
[1733159119789,12.8372085,226.72,226.69,4.403]
[1733159120034,12.8372085,226.74,226.69,4.403]
[1733159120057,30.0,226.7,226.69,4.403]
[1733159120073,30.0,226.7,226.67,12.8372085]
[1733159120085,30.0,226.7,226.68,4.403]
[1733159120172,30.0,226.7,226.65,15.3568]
[1733159120173,30.0,226.7,226.66,4.403]
[1733159120498,30.0,226.7,226.66,12.8372085]
[1733159122167,30.0,226.7,226.67,12.8372085]
[1733159122170,30.0,226.7,226.68,4.403]
[1733159122192,30.0,226.7,226.68,17.2402085]
[1733159122198,30.0,226.7,226.67,17.2402085]
[1733159122201,30.0,226.7,226.67,4.403]
[1733159122489,30.0,226.7,226.66,4.403]
[1733159123509,42.8372085,226.7,226.65,4.403]
[1733159123684,13.22269429,226.69,226.65,4.403]
[1733159123895,12.8372085,226.67,226.65,4.403]
[1733159124105,13.22269429,226.66,226.65,4.403]
[1733159125402,43.22269429,226.66,226.61,4.403]
[1733159125703,43.22269429,226.66,226.62,4.403]
[1733159126286,42.8372085,226.66,226.62,4.403]
[1733159127848,30.0,226.66,226.61,4.403]
[1733159127852,30.0,226.66,226.63,17.2402085]
[1733159127857,30.0,226.66,226.63,4.403]
[1733159127894,0.38548579,226.68,226.62,4.403]
[1733159129411,0.38548579,226.68,226.59,6.6337]
[1733159129412,12.8372085,226.71,226.64,12.8372085]
[1733159129707,0.38548579,226.72,226.67,17.2402085]
[1733159129917,0.38548579,226.73,226.67,17.2402085]
[1733159130094,13.22269429,226.73,226.67,4.403]
[1733159130505,12.8372085,226.72,226.67,4.403]
[1733159130691,12.8372085,226.72,226.66,4.403]
[1733159130902,30.0,226.68,226.66,17.2402085]
[1733159132184,30.0,226.68,226.67,4.403]
[1733159132203,13.22269429,226.72,226.66,4.403]
[1733159132519,12.8372085,226.7,226.66,4.403]
[1733159132704,0.38548579,226.69,226.66,4.403]
[1733159134292,13.22269429,226.69,226.63,4.403]
[1733159134298,30.0,226.67,226.63,4.403]
[1733159134343,30.0,226.67,226.66,17.2402085]
[1733159134596,0.38548579,226.72,226.66,17.2402085]
[1733159134795,0.38548579,226.72,226.68,4.403]
[1733159135009,30.0,226.69,226.68,4.403]
[1733159135813,30.0,226.69,226.66,4.403]
[1733159137119,30.0,226.69,226.65,4.403]
[1733159138594,30.0,226.69,226.65,17.2402085]
[1733159138860,30.0,226.69,226.67,17.2402085]
[1733159138868,30.0,226.69,226.68,41.3935625]
[1733159139117,0.38548579,226.77,226.69,0.12549]
[1733159139422,30.0,226.7,226.69,0.12549]
[1733159141017,30.0,226.7,226.69,41.3935625]
[1733159141026,13.22269429,226.77,226.7,0.25098]
[1733159141029,12.8372085,226.75,226.69,4.403]
[1733159141033,12.8372085,226.72,226.69,4.403]
[1733159141038,0.38548579,226.71,226.7,4.403]
[1733159141041,20.0,226.76,226.7,4.403]
[1733159141120,0.38548579,226.75,226.7,4.403]
[1733159141521,12.8372085,226.73,226.7,4.403]
[1733159141724,30.0,226.71,226.7,4.403]
[1733159142807,30.0,226.71,226.66,4.403]
[1733159142998,30.0,226.71,226.66,17.2402085]
[1733159145545,30.0,226.71,226.67,0.25098]
[1733159145719,30.0,226.71,226.69,17.2402085]
[1733159146225,30.0,226.71,226.7,17.4911885]
[1733159147650,0.38548579,226.78,226.7,17.4911885]
[1733159147801,0.38548579,226.78,226.72,4.403]
[1733159148219,12.8372085,226.77,226.72,4.403]
[1733159148902,12.8372085,226.82,226.71,4.403]
[1733159148903,12.8372085,226.75,226.71,4.403]
[1733159149802,12.8372085,226.75,226.69,4.403]
[1733159150517,30.0,226.73,226.69,4.403]
[1733159154527,12.8372085,226.72,226.69,4.403]
[1733159154531,12.8372085,226.7,226.69,4.403]
[1733159154932,42.8372085,226.7,226.64,4.403]
[1733159155229,12.8372085,226.68,226.64,4.403]
[1733159155415,0.38548579,226.69,226.64,4.403]
[1733159155416,13.22269429,226.69,226.64,4.403]
[1733159155723,0.38548579,226.69,226.64,4.403]
[1733159155925,0.38548579,226.69,226.63,4.403]
[1733159156423,0.38548579,226.69,226.63,17.2402085]
[1733159156604,0.38548579,226.73,226.67,4.403]
[1733159156803,13.22269429,226.73,226.67,4.403]
[1733159157535,12.8372085,226.71,226.67,4.403]
[1733159157828,0.38548579,226.7,226.68,4.403]
[1733159158035,13.22269429,226.7,226.68,4.403]
[1733159159329,12.8372085,226.69,226.63,4.403]
[1733159159471,15.3851,226.74,226.63,4.403]
[1733159159472,43.22269429,226.68,226.63,4.403]
[1733159159535,30.0,226.68,226.63,17.2402085]
[1733159160029,30.0,226.68,226.65,4.403]
[1733159162431,30.0,226.68,226.66,4.403]
[1733159162605,13.22269429,226.67,226.61,4.403]
[1733159162813,30.0,226.66,226.61,4.403]
[1733159163007,13.22269429,226.65,226.61,4.403]
[1733159163317,13.22269429,226.65,226.59,4.403]
[1733159163720,30.0,226.64,226.59,4.403]
[1733159164241,13.22269429,226.63,226.57,4.9184579]
[1733159164730,30.0,226.62,226.57,4.9184579]
[1733159165998,0.38548579,226.61,226.57,0.5154579]
[1733159166016,30.0,226.6,226.57,0.5154579]
[1733159168084,0.38548579,226.59,226.57,0.5154579]
[1733159168086,30.0,226.58,226.57,0.5154579]
[1733159168118,42.8372085,226.58,226.57,0.5154579]
[1733159168309,30.0,226.58,226.57,0.5154579]
[1733159168508,30.38548579,226.58,226.57,0.5154579]
[1733159169134,30.0,226.58,226.57,0.5154579]
[1733159171177,30.0,226.58,226.57,18.0066464]
[1733159171881,30.0,226.58,226.57,111.9090204]
[1733159171905,12.8372085,226.68,226.58,0.37647]
[1733159171924,30.0,226.59,226.58,0.37647]
[1733159172042,30.0,226.59,226.58,17.2402085]
[1733159172208,30.0,226.59,226.58,4.403]
[1733159174063,30.0,226.59,226.57,0.5154579]
[1733159176423,12.8372085,226.61,226.57,0.5154579]
[1733159177330,12.8372085,226.59,226.57,0.5154579]
[1733159177859,12.8372085,226.6,226.57,0.5154579]
[1733159177874,0.38548579,226.59,226.57,0.5154579]
[1733159179993,30.0,226.58,226.57,0.5154579]
[1733159180015,43.22269429,226.58,226.57,0.5154579]
[1733159180618,30.38548579,226.58,226.57,0.5154579]
[1733159181336,30.0,226.58,226.57,0.5154579]
[1733159182242,30.0,226.58,226.57,18.0066464]
[1733159182427,30.0,226.58,226.57,18.1321364]
[1733159183097,13.22269429,226.66,226.58,0.25098]
[1733159183795,0.38548579,226.7,226.63,12.8372085]
[1733159183816,0.38548579,226.7,226.62,12.8372085]
[1733159183817,30.0,226.64,226.62,12.8372085]
[1733159183838,30.0,226.64,226.6,13.0881885]
[1733159183849,30.0,226.64,226.61,4.403]
[1733159185978,30.0,226.64,226.59,12.8372085]
[1733159185986,30.0,226.64,226.57,70.6409479]
[1733159185987,12.8372085,226.63,226.6,4.403]
[1733159185993,30.0,226.62,226.6,4.403]
[1733159186001,12.8372085,226.64,226.6,4.403]
[1733159186014,12.8372085,226.64,226.58,4.403]
[1733159186019,30.0,226.61,226.58,4.403]
[1733159186345,30.0,226.61,226.59,0.25098]
[1733159186548,30.0,226.61,226.6,4.403]
[1733159187133,30.0,226.61,226.6,17.2402085]
[1733159187450,12.8372085,226.72,226.61,0.25098]
[1733159187627,0.38548579,226.72,226.67,4.403]
[1733159187831,12.8372085,226.71,226.67,4.403]
[1733159189195,0.38548579,226.7,226.67,4.403]
[1733159189312,12.8372085,226.71,226.67,4.403]
[1733159189333,12.8372085,226.73,226.67,4.403]
[1733159189344,0.38548579,226.72,226.67,4.403]
[1733159189529,0.38548579,226.72,226.66,4.403]
[1733159191511,0.38548579,226.72,226.66,17.2402085]
[1733159191521,0.38548579,226.72,226.66,4.403]
[1733159191526,15.3043,226.78,226.68,4.403]
[1733159191527,12.8372085,226.74,226.68,4.403]
[1733159191838,15.3043,226.78,226.71,12.8372085]
[1733159191839,12.8372085,226.78,226.71,12.8372085]
[1733159192054,13.22269429,226.81,226.74,12.8372085]
[1733159192357,0.38548579,226.81,226.74,12.8372085]
[1733159192740,0.38548579,226.81,226.75,4.403]
[1733159192959,13.22269429,226.81,226.75,4.403]
[1733159194173,0.38548579,226.82,226.76,4.403]
[1733159194632,12.8372085,226.83,226.76,4.403]
[1733159194658,12.8372085,226.82,226.76,4.403]
[1733159196898,12.8372085,226.81,226.75,0.25098]
[1733159196912,12.8372085,226.81,226.74,0.25098]
[1733159196919,13.22269429,226.8,226.74,0.25098]
[1733159196935,12.8372085,226.8,226.74,0.25098]
[1733159196941,12.8372085,226.82,226.75,13.0881885]
[1733159196943,0.38548579,226.87,226.8,0.25098]
[1733159197025,0.38548579,226.88,226.82,12.8372085]
[1733159197272,12.8372085,226.89,226.82,12.8372085]
[1733159197446,13.22269429,226.93,226.85,12.8372085]
[1733159198031,12.8372085,226.92,226.85,12.8372085]
[1733159198333,12.8372085,226.9,226.84,0.25098]
[1733159198532,12.8372085,226.88,226.81,6.0586]
[1733159198741,12.8372085,226.88,226.82,0.25098]
[1733159200366,12.8372085,226.85,226.81,6.0586]
[1733159200375,12.8372085,226.93,226.75,19.3509085]
[1733159200376,12.8372085,226.82,226.75,19.3509085]
[1733159200388,12.8372085,226.81,226.75,6.5137]
[1733159200399,12.8372085,226.82,226.76,0.25098]
[1733159200414,12.8372085,226.82,226.75,19.3509085]
[1733159200549,12.8372085,226.83,226.76,0.25098]
[1733159200756,12.8372085,226.82,226.76,0.25098]
[1733159202505,0.38548579,226.9,226.76,0.25098]
[1733159202506,12.8372085,226.83,226.76,0.25098]
[1733159202515,20.54528899,226.83,226.76,20.79626899]
[1733159202530,20.54528899,226.85,226.78,0.25098]
[1733159202539,20.54528899,226.87,226.8,20.54528899]
[1733159202607,20.54528899,226.88,226.8,20.54528899]
[1733159202851,0.38548579,226.87,226.8,20.54528899]
[1733159203057,20.93077478,226.87,226.8,20.54528899]
[1733159203634,20.54528899,226.86,226.8,0.25098]
[1733159204359,20.54528899,226.84,226.77,20.54528899]
[1733159204738,20.54528899,226.86,226.78,20.79626899]
[1733159204936,20.54528899,226.87,226.8,20.54528899]
[1733159206772,20.54528899,226.87,226.8,4.65998]
[1733159206786,20.54528899,226.86,226.8,4.65998]
[1733159206832,20.54528899,226.84,226.8,4.409]
[1733159207136,20.54528899,226.84,226.78,0.25098]
[1733159207335,0.38548579,226.92,226.78,0.25098]
[1733159207336,20.54528899,226.85,226.79,4.409]
[1733159208886,20.93077478,226.84,226.79,4.409]
[1733159208892,20.93077478,226.83,226.79,4.409]
[1733159208897,20.54528899,226.83,226.77,4.65998]
[1733159208920,20.54528899,226.84,226.78,4.409]
[1733159209362,0.38548579,226.92,226.75,7.12057982]
[1733159209363,20.54528899,226.81,226.76,4.409]
[1733159209665,20.93077478,226.8,226.76,4.409]
[1733159210237,20.54528899,226.8,226.76,4.409]
[1733159210836,20.54528899,226.82,226.76,4.409]
[1733159212598,0.38548579,226.81,226.77,4.409]
[1733159213129,20.54528899,226.78,226.77,4.409]
[1733159213192,20.54528899,226.78,226.75,0.60687982]
[1733159213256,20.54528899,226.76,226.75,0.60687982]
[1733159215314,20.93077478,226.76,226.75,0.60687982]
[1733159215959,21.05626478,226.76,226.75,0.60687982]
[1733159216450,64.89794878,226.76,226.75,0.60687982]
[1733159216968,20.0,226.73,226.61,4.409]
[1733159217156,20.54528899,226.64,226.61,4.409]
[1733159218561,20.54528899,226.65,226.61,4.409]
[1733159218567,0.38548579,226.64,226.61,4.409]
[1733159218583,20.54528899,226.64,226.61,4.409]
[1733159218595,20.54528899,226.66,226.61,4.409]
[1733159218623,20.54528899,226.64,226.61,4.409]
[1733159218860,20.54528899,226.71,226.61,4.409]
[1733159218861,20.93077478,226.63,226.61,4.409]
[1733159220746,20.93077478,226.63,226.57,0.5154579]
[1733159220747,20.54528899,226.62,226.57,0.5154579]
[1733159220757,20.93077478,226.61,226.57,0.5154579]
[1733159220762,20.54528899,226.6,226.57,0.5154579]
[1733159220790,20.54528899,226.58,226.57,0.5154579]
[1733159220814,44.32217299,226.58,226.57,0.5154579]
[1733159220959,44.70765878,226.58,226.57,0.5154579]
[1733159221869,44.83314878,226.58,226.57,0.5154579]
[1733159223577,44.70765878,226.58,226.57,0.5154579]
[1733159223593,20.54528899,226.6,226.57,0.5154579]
[1733159223603,20.54528899,226.61,226.57,0.5154579]
[1733159223779,0.38548579,226.65,226.58,0.25098]
[1733159225662,0.38548579,226.72,226.58,0.25098]
[1733159225676,20.54528899,226.67,226.59,20.54528899]
[1733159225682,20.54528899,226.68,226.61,20.54528899]
[1733159225689,20.54528899,226.7,226.62,20.54528899]
[1733159225696,15.1385,226.73,226.6,20.54528899]
[1733159225697,20.54528899,226.67,226.6,20.54528899]
[1733159225700,0.38548579,226.69,226.59,0.25098]
[1733159225701,20.54528899,226.69,226.61,20.54528899]
[1733159225708,0.38548579,226.68,226.61,20.54528899]
[1733159225816,20.54528899,226.67,226.59,20.54528899]
[1733159225879,20.93077478,226.66,226.58,20.54528899]
[1733159226178,20.54528899,226.67,226.59,20.54528899]
[1733159226352,0.38548579,226.66,226.59,20.54528899]
[1733159226564,20.93077478,226.66,226.58,20.54528899]
[1733159226860,20.93077478,226.66,226.57,6.7480579]
[1733159226861,20.54528899,226.62,226.57,6.7480579]
[1733159227067,20.54528899,226.65,226.58,20.54528899]
[1733159227372,20.54528899,226.67,226.6,20.54528899]
[1733159228290,20.93077478,226.66,226.57,6.7480579]
[1733159228610,20.54528899,226.67,226.6,20.54528899]
[1733159228624,0.38548579,226.66,226.6,20.54528899]
[1733159228634,20.54528899,226.64,226.57,27.29334689]
[1733159228658,20.54528899,226.62,226.57,6.7480579]
[1733159230729,0.38548579,226.67,226.57,6.7480579]
[1733159230730,20.54528899,226.64,226.57,27.29334689]
[1733159230734,20.54528899,226.64,226.57,6.7480579]
[1733159230761,20.54528899,226.64,226.57,27.29334689]
[1733159230764,20.54528899,226.67,226.6,20.54528899]
[1733159230768,20.93077478,226.66,226.59,20.54528899]
[1733159230822,20.54528899,226.66,226.59,20.54528899]
[1733159231290,137.8,226.9,226.57,6.7480579]
[1733159231291,20.54528899,226.63,226.57,6.7480579]
[1733159231600,20.54528899,226.65,226.58,4.409]
[1733159231787,0.38548579,226.64,226.58,4.409]
[1733159231987,20.54528899,226.65,226.58,24.95428899]
[1733159232397,20.54528899,226.66,226.6,4.409]
[1733159233884,20.54528899,226.66,226.59,4.409]
[1733159234223,20.54528899,226.67,226.59,24.95428899]
[1733159234281,20.54528899,226.7,226.64,4.409]
[1733159234487,20.54528899,226.71,226.64,4.409]
[1733159236315,20.54528899,226.72,226.65,4.409]
[1733159236331,20.54528899,226.67,226.59,20.54528899]
[1733159236337,20.54528899,226.66,226.58,46.97528899]
[1733159236356,20.54528899,226.66,226.59,20.79626899]
[1733159236362,20.54528899,226.66,226.6,4.409]
[1733159236406,23.776884,226.67,226.6,24.95428899]
[1733159236589,44.32217299,226.67,226.6,24.95428899]
[1733159236774,44.32217299,226.67,226.59,0.25098]
[1733159236775,23.776884,226.65,226.59,4.409]
[1733159236975,44.32217299,226.65,226.59,4.409]
[1733159237164,23.776884,226.65,226.59,4.409]
[1733159238491,5.38548579,226.75,226.64,4.409]
[1733159238492,20.54528899,226.7,226.64,4.409]
[1733159238692,20.54528899,226.71,226.65,4.409]
[1733159239726,20.54528899,226.72,226.65,4.409]
[1733159240281,20.54528899,226.69,226.65,4.409]
[1733159240303,0.38548579,226.71,226.57,76.7480579]
[1733159240304,20.54528899,226.66,226.57,6.7480579]
[1733159240328,20.54528899,226.6,226.58,4.409]
[1733159240349,44.32217299,226.6,226.57,6.7480579]
[1733159240493,44.32217299,226.6,226.57,0.5154579]
[1733159242512,23.776884,226.58,226.57,0.5154579]
[1733159242542,44.32217299,226.58,226.57,0.5154579]
[1733159242579,23.776884,226.58,226.57,0.5154579]
[1733159243070,24.16236979,226.58,226.57,0.5154579]
[1733159243397,23.776884,226.58,226.57,0.5154579]
[1733159244496,20.54528899,226.63,226.57,0.5154579]
[1733159244671,23.776884,226.62,226.57,0.5154579]
[1733159244930,24.16236979,226.62,226.57,0.5154579]
[1733159245255,44.70765878,226.62,226.57,0.5154579]
[1733159246273,24.16236979,226.62,226.57,0.5154579]
[1733159248088,30.0,226.58,226.57,0.5154579]
[1733159250669,53.776884,226.58,226.57,0.5154579]
[1733159251395,66.64101331,226.58,226.57,0.5154579]
[1733159251694,42.86412931,226.58,226.57,0.5154579]
[1733159252327,30.0,226.58,226.57,0.5154579]
[1733159253159,30.0,226.58,226.57,17.78858721]
[1733159253285,0.38548579,226.67,226.57,87.78858721]
[1733159255279,12.86412931,226.69,226.63,4.409]
[1733159255285,30.0,226.64,226.63,4.409]
[1733159255316,30.0,226.64,226.62,4.409]
[1733159257698,30.0,226.64,226.63,4.409]
[1733159259596,30.0,226.64,226.61,4.409]
[1733159261313,30.0,226.64,226.63,4.409]
[1733159261339,30.0,226.64,226.62,4.409]
[1733159261580,42.86412931,226.64,226.62,4.409]
[1733159261780,30.0,226.64,226.59,4.409]
[1733159263371,30.0,226.64,226.61,4.409]
[1733159264830,30.0,226.64,226.59,4.409]
[1733159265424,30.0,226.64,226.59,17.27312931]
[1733159266108,30.0,226.64,226.63,12.86412931]
[1733159267514,30.0,226.64,226.62,12.86412931]
[1733159267541,30.0,226.64,226.63,4.409]
[1733159267546,13.2496151,226.68,226.63,4.409]
[1733159267591,12.86412931,226.67,226.64,4.409]
[1733159267705,30.0,226.65,226.64,4.409]
[1733159268609,30.0,226.65,226.6,4.409]
[1733159269124,12.86412931,226.64,226.6,4.409]
[1733159269432,12.86412931,226.61,226.59,4.409]
[1733159270189,30.0,226.6,226.59,4.409]
[1733159271944,30.0,226.6,226.57,0.5154579]
[1733159274095,30.0,226.6,226.57,4.9244579]
[1733159274116,30.0,226.6,226.59,4.409]
[1733159274135,30.0,226.6,226.59,17.27312931]
[1733159274807,12.86412931,226.66,226.59,17.27312931]
[1733159274994,12.86412931,226.66,226.58,17.27312931]
[1733159276117,13.2496151,226.65,226.59,4.409]
[1733159276320,30.0,226.6,226.59,4.409]
[1733159278044,30.0,226.6,226.58,17.27312931]
[1733159278089,0.38548579,226.65,226.58,17.27312931]
[1733159278105,12.86412931,226.66,226.6,4.409]
[1733159280158,12.86412931,226.67,226.6,17.27312931]
[1733159280209,13.2496151,226.66,226.61,4.409]
[1733159280216,12.86412931,226.68,226.61,4.409]
[1733159280219,12.86412931,226.69,226.63,4.409]
[1733159280309,13.2496151,226.68,226.63,4.409]
[1733159280513,12.86412931,226.69,226.63,4.409]
[1733159281001,12.86412931,226.7,226.64,4.409]
[1733159281202,12.86412931,226.7,226.63,4.409]
[1733159281401,12.86412931,226.67,226.6,12.86412931]
[1733159281905,12.86412931,226.64,226.57,13.37958721]
[1733159282119,12.86412931,226.61,226.57,0.5154579]
[1733159282300,17.86412931,226.71,226.57,4.9244579]
[1733159282301,0.38548579,226.6,226.57,4.9244579]
[1733159282508,20.38548579,226.64,226.57,4.9244579]
[1733159283739,12.86412931,226.58,226.57,4.9244579]
[1733159284102,42.86412931,226.58,226.57,0.5154579]
[1733159284120,30.0,226.58,226.57,0.5154579]
[1733159287538,0.38548579,226.64,226.57,0.5154579]
[1733159287539,12.86412931,226.63,226.57,0.5154579]
[1733159287737,13.2496151,226.68,226.62,4.409]
[1733159288031,0.38548579,226.75,226.62,0.12549]
[1733159289720,12.86412931,226.69,226.61,17.27312931]
[1733159289736,12.86412931,226.67,226.61,4.409]
[1733159289757,12.86412931,226.7,226.63,17.27312931]
[1733159289769,12.86412931,226.71,226.63,17.27312931]
[1733159289772,12.86412931,226.74,226.67,17.27312931]
[1733159290099,12.86412931,226.74,226.6,55.42972931]
[1733159290100,0.38548579,226.73,226.6,112.5656]
[1733159291909,30.0,226.68,226.63,12.86412931]
[1733159291917,30.0,226.68,226.63,4.409]
[1733159291929,30.0,226.68,226.65,4.409]
[1733159291932,30.0,226.68,226.67,12.86412931]
[1733159291957,30.0,226.68,226.67,17.27312931]
[1733159292911,0.38548579,226.75,226.67,17.27312931]
[1733159293120,12.86412931,226.76,226.65,7.29047907]
[1733159293121,12.86412931,226.76,226.69,4.409]
[1733159293321,30.0,226.7,226.69,4.409]
[1733159293503,30.0,226.7,226.69,17.27312931]
[1733159293904,0.05486421,226.78,226.7,85.8286]
[1733159295119,0.05486421,226.78,226.71,0.8796027]
[1733159295135,0.05486421,226.78,226.76,12.86412931]
[1733159295144,30.0,226.77,226.76,17.27312931]
[1733159295161,30.0,226.77,226.75,4.409]
[1733159295234,30.0,226.77,226.71,12.86412931]
[1733159295439,30.0,226.77,226.72,12.86412931]
[1733159297220,30.0,226.76,226.73,4.409]
[1733159297236,30.0,226.76,226.71,17.27312931]
[1733159297263,30.0,226.76,226.72,12.86412931]
[1733159297333,30.0,226.76,226.75,12.86412931]
[1733159298937,0.05486421,226.78,226.74,4.409]
[1733159299517,12.86412931,226.81,226.74,4.409]
[1733159299920,12.86412931,226.79,226.73,0.11179434]
[1733159300126,30.0,226.75,226.73,0.11179434]
[1733159303517,30.0,226.75,226.73,12.97592365]
[1733159303849,30.0,226.75,226.73,0.11179434]
[1733159304343,12.86412931,226.74,226.73,0.11179434]
[1733159304543,7.16,226.74,226.73,0.11179434]
[1733159305444,7.16,226.74,226.73,12.97592365]
[1733159306326,7.16,226.74,226.73,17.38492365]
[1733159307772,12.86412931,226.83,226.75,4.409]
[1733159307786,7.16,226.76,226.75,4.409]
[1733159308146,0.38548579,226.86,226.75,10.8233]
[1733159309921,0.38548579,226.89,226.76,4.409]
[1733159309925,0.38548579,226.86,226.76,4.409]
[1733159309950,12.86412931,226.85,226.79,4.409]
[1733159309954,30.0,226.8,226.79,4.409]
[1733159310256,30.0,226.8,226.78,4.409]
[1733159310635,29.5,226.8,226.78,4.409]
[1733159312036,29.5,226.8,226.79,4.409]
[1733159314050,29.5,226.8,226.77,4.409]
[1733159314053,29.5,226.8,226.79,4.409]
[1733159314064,12.86412931,226.88,226.79,17.27312931]
[1733159314339,12.86412931,226.87,226.8,17.27312931]
[1733159314543,30.0,226.81,226.8,17.27312931]
[1733159316163,30.0,226.81,226.8,4.409]
[1733159316165,30.0,226.81,226.75,22.081]
[1733159316166,12.86412931,226.81,226.76,4.409]
[1733159316176,0.38548579,226.8,226.7,82.86412931]
[1733159316180,12.86412931,226.77,226.7,82.86412931]
[1733159316183,12.86412931,226.77,226.7,12.86412931]
[1733159316206,12.86412931,226.77,226.71,4.409]
[1733159316658,42.86412931,226.75,226.72,4.409]
[1733159317447,30.0,226.75,226.7,17.27312931]
[1733159317760,30.0,226.75,226.73,4.52079434]
[1733159318334,30.0,226.75,226.74,17.27312931]
[1733159318663,30.0,226.75,226.74,137.53600331]
[1733159318835,0.38548579,226.89,226.79,4.409]
[1733159318836,0.38548579,226.87,226.79,4.409]
[1733159319032,30.0,226.8,226.79,29.06526783]
[1733159319240,16.1089,226.96,226.83,4.409]
[1733159320270,0.38548579,226.95,226.83,4.409]
[1733159320486,30.0,226.84,226.83,4.409]
[1733159320511,30.0,226.84,226.83,17.27312931]
[1733159321061,13.2496151,226.9,226.83,12.86412931]
[1733159322596,12.86412931,226.9,226.83,12.86412931]
[1733159322629,30.0,226.84,226.83,12.86412931]
[1733159323579,0.38548579,226.91,226.83,12.86412931]
[1733159323888,0.38548579,226.91,226.84,12.86412931]
[1733159324188,12.86412931,226.94,226.86,12.86412931]
[1733159324407,0.38548579,226.95,226.88,12.86412931]
[1733159324586,12.86412931,226.92,226.85,12.86412931]
[1733159324895,12.86412931,226.9,226.82,12.86412931]
[1733159325067,30.0,226.87,226.82,12.86412931]
[1733159325490,30.0,226.87,226.81,12.86412931]
[1733159326749,12.86412931,226.86,226.79,12.86412931]
[1733159326810,30.0,226.84,226.79,12.86412931]
[1733159326865,30.0,226.84,226.8,12.86412931]
[1733159328949,30.0,226.84,226.78,18.88732931]
[1733159328954,12.86412931,226.82,226.75,12.86412931]
[1733159328975,43.2496151,226.81,226.73,12.97592365]
[1733159328981,12.86412931,226.78,226.73,0.11179434]
[1733159328993,30.38548579,226.81,226.73,0.11179434]
[1733159328994,12.86412931,226.76,226.73,0.11179434]
[1733159329003,12.86412931,226.75,226.73,0.11179434]
[1733159329109,12.86412931,226.76,226.73,0.11179434]
[1733159329595,12.86412931,226.74,226.73,0.11179434]
[1733159331184,12.86412931,226.75,226.73,0.11179434]
[1733159332272,0.38548579,226.75,226.73,0.11179434]
[1733159332434,12.86412931,226.75,226.73,0.11179434]
[1733159332441,12.86412931,226.74,226.73,0.11179434]
[1733159334523,29.51362931,226.74,226.73,0.11179434]
[1733159335457,29.63911931,226.74,226.73,0.11179434]
[1733159335652,30.0246051,226.74,226.73,0.11179434]
[1733159336796,47.88873441,226.74,226.73,0.11179434]
[1733159337957,47.88873441,226.74,226.59,23.776884]
[1733159337958,20.0,226.7,226.59,23.776884]
[1733159339051,12.86412931,226.66,226.59,36.64101331]
[1733159339177,12.86412931,226.66,226.6,23.776884]
[1733159339202,13.2496151,226.65,226.59,23.776884]